Cogmind - Beta 12 @@@ ROGUE MODE // 2023.10.26 @ 21:16:59 Player: Gamma Result: Destroyed by as-23385 with Assembled Heavy Rifle Performance ------------- Evolutions (0) 0 Regions Visited (4) 800 Robots Destroyed (29) 145 Value Destroyed (618) 618 Prototype IDs (0) 0 Alien Tech Used (0) 0 Bonus (14) 14 TOTAL SCORE: 1577 Bonus ------- Follower Combat Kills 14 Cogmind --------- Core Integrity 0/250 Matter 227/300 Energy 120/125 System Corruption 4% Temperature Cool (25) Movement Core (750) Ox14 Location -9/Mines Parts ------- > --- POWER (1) -------- Light Ion Engine > --- PROPULSION (2) --- (None) > --- UTILITY (2) ------ High-capacity Storage Unit Seismic Detector > --- WEAPON (2) ------- (None) > --- INVENTORY (20) --- Light Treads Aluminum Leg Wheel Compact Wheel Armored Wheel Heat Sink High-capacity Storage Unit Visual Processing Unit Improved Terrain Scanner Improved Targeting Computer Improved Targeting Computer Improved Targeting Computer Hacking Suite EM Shotgun EM Shotgun Light EM Pulse Cannon Light EM Pulse Cannon Peak State ------------ > --- POWER ------------ Ion Engine > --- PROPULSION ------- Light Treads Light Treads > --- UTILITY ---------- High-capacity Storage Unit Seismic Detector > --- WEAPON ----------- EM Shotgun Light EM Pulse Cannon > --- INVENTORY -------- Light Treads Wheel Compact Wheel Heat Sink Large Storage Unit Large Storage Unit High-capacity Storage Unit Visual Processing Unit Improved Terrain Scanner Improved Targeting Computer Improved Targeting Computer Improved Targeting Computer Hacking Suite EM Shotgun EM Shotgun Light EM Pulse Cannon Grenade Launcher Rocket Launcher [Rating: 12] Favorites ----------- Power Ion Engine Engine Ion Engine Propulsion Light Treads Treads Light Treads Wheel Wheel Utility High-capacity Storage Unit Device Seismic Detector Storage High-capacity Storage Unit Processor Signal Interpreter Weapon EM Shotgun Energy Gun EM Shotgun Energy Cannon Light EM Pulse Cannon Launcher Grenade Launcher Build | -11 -10 -10 -10 -9 ------- Run | Jun Mat Min Exi Min Slots Evolved . | . . . . . Power . | . . . . . Propulsion . | . . . . . Utility . | . . . . . Weapon . | . . . . . Parts Attached 34 | 7 14 7 . 6 Power 2 | 1 . . . 1 Engine 2 | 1 . . . 1 Core . | . . . . . Reactor . | . . . . . Propulsion 6 | 3 2 1 . . Treads 4 | 2 1 1 . . Leg . | . . . . . Wheel 2 | 1 1 . . . Hover . | . . . . . Flight . | . . . . . Utility 8 | 1 6 1 . . Device 2 | . 1 1 . . Storage 5 | 1 4 . . . Processor 1 | . 1 . . . Hackware . | . . . . . Protection . | . . . . . Artifact . | . . . . . Weapon 18 | 2 6 5 . 5 Energy Gun 10 | 2 5 1 . 2 Energy Cannon 1 | . . 1 . . Ballistic Gun . | . . . . . Ballistic Cannon . | . . . . . Launcher 7 | . 1 3 . 3 Special Weapon . | . . . . . Impact Weapon . | . . . . . Slashing Weapon . | . . . . . Piercing Weapon . | . . . . . Special Melee Weapon . | . . . . . Unidentified Prototypes . | . . . . . Parts Lost 9 | . 2 1 . 6 Power 1 | . . . . 1 Propulsion 3 | . 1 . . 2 Utility . | . . . . . Weapon 5 | . 1 1 . 3 Highest Loss Streak 6 | . 2 1 . 6 To Critical Strikes . | . . . . . Average Slot Usage (%) 95 | . 97 99 85 100 Engine 14 | . 14 14 14 14 Treads 27 | . 26 26 28 28 Device 9 | . 2 12 14 14 Storage 14 | . 14 14 14 14 Processor 3 | . 10 1 . . Energy Gun 16 | . 27 17 . 10 Energy Cannon 1 | . . 3 . . Launcher 7 | . . 6 14 17 Naked Turns . | . . . . . Heaviest Build 53 | 14 51 53 49 53 Greatest Support 40 | 40 40 40 40 40 Greatest Overweight (x) 5 | . 5 5 1 1 Average Overweight (x) . | . . 1 1 1 Largest Inventory Capacity 20 | 8 20 20 20 20 Average Capacity 17 | 7 12 20 20 20 Most Carried 19 | 7 15 19 19 19 Average Carried 15 | 5 9 17 18 18 Final Capacity 20 | 8 20 20 20 20 Final Carried 19 | 7 15 19 17 17 Class Distribution -------------------- 100% | Mutant Dominant Class ---------------- Mutant | -10/Materials Mutant | -10/Mines Mutant | -10/Exiles Mutant | -9/Mines Resources | -11 -10 -10 -10 -9 ----------- Run | Jun Mat Min Exi Min Matter Collected 598 | 226 164 168 . 40 Remotely . | . . . . . Salvage Created 701 | 15 348 182 . 156 Parts 55 | 2 25 15 . 13 Haulers Intercepted 1 | . 1 . . . Recyclers Shooed . | . . . . . Parts Field Recycled . | . . . . . Retrieved Matter . | . . . . . Parts Self-Destructed . | . . . . . Prevented . | . . . . . Kills | -11 -10 -10 -10 -9 ------- Run | Jun Mat Min Exi Min Combat Hostiles Destroyed 31 | . 5 9 . 17 Guns 4 | . 3 . . 1 Cannons 1 | . . 1 . . AOE 26 | . 2 8 . 16 Classes Destroyed 10 | 1 5 3 . 1 Worker 1 | . . 1 . . Builder 1 | . 1 . . . Tunneler 1 | 1 . . . . Hauler 1 | . 1 . . . Recycler 1 | . . 1 . . Operator 1 | . 1 . . . Watcher 2 | . 2 . . . Swarmer 11 | . . 7 . 4 Grunt 10 | . 5 2 . 3 Assembled 10 | . . . . 10 Best Kill Streak 10 | 1 5 3 . 10 Combat Bots Only 10 | . 4 3 . 10 Max Kills in Single Turn 4 | 1 2 3 . 4 Gunslinging . | . . . . . Exploded 4 | . 2 3 . 4 Melee . | . . . . . Uniques/NPCs Destroyed . | . . . . . Combat | -11 -10 -10 -10 -9 -------- Run | Jun Mat Min Exi Min Damage Taken 1103 | . 340 198 . 565 Core 253 | . 70 19 . 164 Absorbed by Shields . | . . . . . Regen/Repaired (Parts) 5 | . 5 . . . Core Remaining (%) 100 | 100 . . . . Volleys Fired 52 | 7 19 18 . 8 Largest 2 | 2 2 2 . 2 Hottest 101 | 90 90 101 . 90 Shots Fired 83 | 14 38 21 . 10 Gun 60 | 14 37 7 . 2 Cannon 6 | . . 6 . . Launcher 17 | . 1 8 . 8 Special . | . . . . . Kinetic . | . . . . . Thermal 13 | 7 6 . . . Explosive 17 | . 1 8 . 8 Electromagnetic 53 | 7 31 13 . 2 Robot Hit Streak 7 | 1 7 5 . 4 Robot Miss Streak 8 | 8 3 4 . 2 Penetration Max . | . . . . . Secondary Targets . | . . . . . Shots Hit Robots 45 | 3 29 9 . 4 Core Hits 65 | 1 17 16 . 31 Critical Kills . | . . . . . Critical Parts Destroyed . | . . . . . Critical Strikes 1 | . 1 . . . Burn 1 | . 1 . . . Melee Attacks . | . . . . . Impact . | . . . . . Slashing . | . . . . . Piercing . | . . . . . Sneak Attacks . | . . . . . Combat Hostiles . | . . . . . Follow-up Attacks . | . . . . . Damage Inflicted 2181 | 40 536 646 . 959 Guns 538 | 40 415 74 . 9 Cannons 50 | . . 50 . . Explosions 1593 | . 121 522 . 950 Melee . | . . . . . Ramming . | . . . . . Kinetic . | . . . . . Thermal 219 | 25 172 22 . . Explosive 1450 | . . 500 . 950 Electromagnetic 512 | 15 364 124 . 9 Impact . | . . . . . Slashing . | . . . . . Piercing . | . . . . . Highest Corruption 4 | . . . . 4 Average Corruption 4 | . . . . 4 Corruption Purged . | . . . . . Corruption Blocked . | . . . . . Overload Shots . | . . . . . Overflow Damage 89 | . 36 25 . 28 Projectiles . | . . . . . Explosions 89 | . 36 25 . 28 Melee . | . . . . . Knockbacks . | . . . . . Impact . | . . . . . Kinetic . | . . . . . Secondary . | . . . . . Self-Inflicted Damage 422 | . 267 31 . 124 Shots 10 | . 4 1 . 5 Rammed . | . . . . . Targets Rammed . | . . . . . Kicked . | . . . . . Crushed . | . . . . . Highest Temperature 199 | 132 199 94 . 30 Average Temperature 49 | 62 60 25 . 13 Received Heat Transfer 135 | . 39 36 . 60 Siege Activations . | . . . . . Robots Corrupted . | . . . . . Combat Hostiles . | . . . . . Parts Fried 3 | . 2 1 . . Impact Corruptions . | . . . . . Robots Melted . | . . . . . Combat Hostiles . | . . . . . Parts Melted . | . . . . . Heat Transferred 446 | 74 322 50 . . Parts Sabotaged . | . . . . . Parts Stolen . | . . . . . Parts Stripped . | . . . . . Power Chain Reactions 3 | . 2 1 . . Missiles Intercepted . | . . . . . Alert | -11 -10 -10 -10 -9 ------- Run | Jun Mat Min Exi Min Peak Influence 219 | 5 194 182 . 219 Initial 31 | . 3 31 . . Average 58 | 2 35 64 . 113 Maximum Alert Level 1 | . . . . 1 Low Security (%) 96 | 100 100 100 . 77 Level 1 3 | . . . . 22 Level 2 . | . . . . . Level 3 . | . . . . . Level 4 . | . . . . . Level 5 . | . . . . . High Security . | . . . . . Max Security . | . . . . . Squads Dispatched 3 | . 2 1 . . Investigation . | . . . . . Extermination . | . . . . . Reinforcement 2 | . 2 . . . Assault 1 | . . 1 . . Garrison . | . . . . . Intercept . | . . . . . Searches Triggered . | . . . . . Construction Impeded . | . . . . . Haulers Reinforced . | . . . . . Active Scanning Responses . | . . . . . Cargo Convoy Interrupts . | . . . . . Stealth | -11 -10 -10 -10 -9 --------- Run | Jun Mat Min Exi Min Distress Signals 1 | . 1 . . . Communications Jammed . | . . . . . Distress Signals . | . . . . . Times Spotted 39 | . 10 9 . 20 Peak Tracking Total 10 | . 2 3 . 10 Tactical Retreats 1 | . . . . 1 Traps | -11 -10 -10 -10 -9 ------- Run | Jun Mat Min Exi Min Traps Triggered 1 | . 1 . . . Indirectly . | . . . . . Trap Hack Attempts . | . . . . . Triggered . | . . . . . Disarmed . | . . . . . Reprogrammed . | . . . . . Reused . | . . . . . Traps Extracted . | . . . . . Installed . | . . . . . Triggered . | . . . . . Machines | -11 -10 -10 -10 -9 ---------- Run | Jun Mat Min Exi Min Machines Disabled 6 | . 4 1 . 1 Max in Single Turn 3 | . 3 1 . 1 Machines Repaired . | . . . . . Machines Sabotaged . | . . . . . Overloaded Fab Kills . | . . . . . Hacking | -11 -10 -10 -10 -9 --------- Run | Jun Mat Min Exi Min Machines Accessed 9 | . 7 . 1 1 Terminals 5 | . 5 . . . Fabricators . | . . . . . Repair Stations 1 | . 1 . . . Recycling Units 1 | . 1 . . . Scanalyzers . | . . . . . Garrison Access . | . . . . . Total Hacks 19 | . 17 . 1 1 Successful 9 | . 7 . 1 1 Failed 10 | . 10 . . . Catastrophic 2 | . 2 . . . Database Lockouts . | . . . . . Manual 12 | . 12 . . . Terminals 13 | . 13 . . . Fabricators . | . . . . . Repair Stations 2 | . 2 . . . Recycling Units 2 | . 2 . . . Scanalyzers . | . . . . . Garrison Access . | . . . . . Terminal Hacks 4 | . 2 . 1 1 Record 1 | . . . 1 . Robot Analysis 2 | . 2 . . . Open Door 1 | . . . . 1 Fabricator Hacks . | . . . . . Repair Station Hacks 2 | . 2 . . . Scan Component 1 | . 1 . . . Repair 1 | . 1 . . . Recycling Unit Hacks 1 | . 1 . . . Retrieve Components 1 | . 1 . . . Scanalyzer . | . . . . . Garrison Access Hacks . | . . . . . Unauthorized Hacks 2 | . 2 . . . Terminals 2 | . 2 . . . Botnet 2 | . 2 . . . Fabricators . | . . . . . Repair Stations . | . . . . . Recycling Units . | . . . . . Scanalyzers . | . . . . . Garrison Access . | . . . . . Data Cores Recovered . | . . . . . Used . | . . . . . Hacking Detections 5 | . 5 . . . Full Trace Events . | . . . . . Feedback Events . | . . . . . Feedback Blocked . | . . . . . Robot Schematics Acquired . | . . . . . Robots Built . | . . . . . Authchips . | . . . . . Time . | . . . . . Total Robot Build Rating . | . . . . . Part Schematics Acquired . | . . . . . Parts Built . | . . . . . Authchips . | . . . . . Time . | . . . . . Total Part Build Rating . | . . . . . Parts Repaired 1 | . 1 . . . Time 53 | . 53 . . . Parts Recycled . | . . . . . Recycled Matter . | . . . . . Retrieved Matter . | . . . . . Retrieved Components 10 | . 10 . . . Parts Scanalyzed . | . . . . . Part Schematics Acquired . | . . . . . Parts Damaged . | . . . . . Bothacking | -11 -10 -10 -10 -9 ------------ Run | Jun Mat Min Exi Min Used RIF Installer . | . . . . . Robots Hacked . | . . . . . Non-combat . | . . . . . Combat . | . . . . . Robot Hacks Applied . | . . . . . Relay Couplers Released . | . . . . . Fabnet Peak Effective % . | . . . . . Robots Rewired . | . . . . . Allies Hacked . | . . . . . Hacks Repelled . | . . . . . Allies | -11 -10 -10 -10 -9 -------- Run | Jun Mat Min Exi Min Total Allies 1 | . . 1 . . Largest Group 1 | . . 1 . . Highest-Rated Group 31 | . . 31 . . Highest-Rated Ally 31 | . . 31 . . Total Orders . | . . . . . Ally Attacks 7 | . . 7 . . Total Damage 83 | . . 83 . . Kills 2 | . . 2 . . Allies Corrupted . | . . . . . Allies Melted . | . . . . . Intel | -11 -10 -10 -10 -9 ------- Run | Jun Mat Min Exi Min Robot Analysis Total 2 | . 2 . . . Derelict Logs Recovered 2 | . . 1 . 1 Drone Launches . | . . . . . Drone Recoveries . | . . . . . Exploration | -11 -10 -10 -10 -9 ------------- Run | Jun Mat Min Exi Min Turns Passed 4117 | 129 1248 1407 866 467 Spaces Moved 1903 | 58 705 596 361 183 Core 1 | 1 . . . . Treads 1749 | 55 657 493 361 183 Legs . | . . . . . Wheels 153 | 2 48 103 . . Hover . | . . . . . Flight . | . . . . . Fastest Speed 50 | 50 125 155 240 240 Average Speed 203 | 155 160 225 240 240 Slowest Speed 240 | 160 240 240 240 240 Overloaded Moves . | . . . . . Propulsion Burnouts . | . . . . . Robots Hopped . | . . . . . Cave-ins Triggered . | . . . . . Exploration Rate (%) 62 | 6 85 99 87 34 Regions Visited 4 Branch Regions 3 Pre-discovered Areas 1 | . . 1 . . Known Exits Taken 1 | . 1 . . . Unknown Exits Taken 3 | 1 . 1 1 . Scrap Searched 3 | . . 2 . 1 Spaces Dug 32 | . 7 7 . 18 Terrain Destroyed 189 | . 56 65 . 68 Melee . | . . . . . Projectile . | . . . . . AOE 189 | . 56 65 . 68 Terrain Rammed . | . . . . . Walls Destroyed . | . . . . . Machines Disabled . | . . . . . Actions | -11 -10 -10 -10 -9 --------- Run | Jun Mat Min Exi Min Total 2065 | 80 785 638 362 200 Wait 31 | 2 16 13 . . Move 1899 | 57 704 595 360 183 Hop . | . . . . . Pick Up 31 | 6 19 3 . 3 Fast Attach 15 | 7 6 2 . . Attach 5 | . 2 . . 3 Detach 2 | 1 . 1 . . Swap 14 | . 6 5 . 3 Drop 16 | . 13 1 2 . Fire 52 | 7 19 18 . 8 Melee . | . . . . . Ram . | . . . . . Kick . | . . . . . Crush . | . . . . . Escape Stasis . | . . . . . Rewire . | . . . . . Trap . | . . . . . Miscellaneous . | . . . . . Route ------- -11/Junkyard -10/Materials (discovered 4 exits: *Mat x3 / *Min) -10/Mines (discovered 3 exits: *Mat x2 / *Exi) -10/Exiles -9/Mines History --------- Turn | Location | Event 32 | -11/Junkyard | Discovered new exit (range 16) 130 | -11/Junkyard | Entered Materials 303 | -10/Materials | Build established: Mutant 430 | -10/Materials | Discovered new exit (range 8) 480 | -10/Materials | Identified exit to Materials 886 | -10/Materials | Repaired Corrupted Imp. Terrain Scanner? 1069 | -10/Materials | Discovered exit to Materials (range 7) 1216 | -10/Materials | Discovered exit to Materials (range 10) 1239 | -10/Materials | Discovered new exit (range 15) 1376 | -10/Materials | Identified exit to Mines 1378 | -10/Materials | Entered Mines 1399 | -10/Mines | Learned 4 Materials zone layouts 1401 | -10/Mines | Learned location of Storage (-8) 1571 | -10/Mines | Discovered exit to Materials (range 5) 1607 | -10/Mines | Received a Rocket Launcher from a helpful Derelict 2214 | -10/Mines | Discovered exit to Materials (range 9) 2678 | -10/Mines | Met a Derelict testing a Signal Generator 2776 | -10/Mines | Deemed a non-threat by the Exiles lab entrance 2776 | -10/Mines | Discovered new exit (range 5) 2785 | -10/Mines | Entered Exiles 2785 | -10/Exiles | Found Exiles lab abandoned 3624 | -10/Exiles | Discovered new exit (range 14) 3651 | -10/Exiles | Entered Mines 3658 | -9/Mines | Met a Derelict bent on vengeance 3997 | -9/Mines | Learned 4 Materials zone layouts 4027 | -9/Mines | Met a Derelict who couldn't figure out how to use a Trap Extractor 4075 | -9/Mines | Assembled infested the area 4080 | -9/Mines | Assisted by a Guerilla fighting off Assembled 4093 | -9/Mines | Core integrity fell below 50% 4114 | -9/Mines | Core integrity fell below 20% 4118 | -9/Mines | Destroyed by as-23385 with Assembled Heavy Rifle Last Messages --------------- 04107_ System corrupted by crushing effect (+3). 04107_ System corrupted by crushing effect (+1). 04110_ as-76243 destroyed. 04110_ as-68781 destroyed. 04110_ as-21287 destroyed. 04112_ Lgt. Treads destroyed. 04114_ Rocket Launcher destroyed. 04115_ as-12272 destroyed. 04115_ Destroyed Asb. Hover Unit. 04115_ as-96085 destroyed. 04115_ as-27863 destroyed. 04117_ as-85680 destroyed. 04117_ as-34254 destroyed. 04117_ as-15698 destroyed. 04117_ Destroyed Asb. F-torch. 04117_ as-21141 destroyed. 04117_ Lgt. Treads destroyed. 04117_ Destroyed Lgt. Treads. 04117_ Grenade Launcher destroyed. 04117_ Destroyed Grenade Launcher. Map ----- +----------------------------------------------------+ | ??????????????????????????????????????????????? | | ??????????????????????????????????????????????? | | ???????????#######????####????????????????????? | | ??????????## #??## #####????????????????? | | ?????????## ### # ##???????????????? | | ????????? ###?????????????? | | ????????? * ############??? | | ??????????? # # #??? | | ????????????? # ## ########## #??? | | ??????????????????# * =## #????????# #??? | | ???????????????????# * [ #????????# #??? | | ??????????????????## # #????????# #??? | | ?????????????????## ##### #????????# #??? | | ?????????????????# ####???# ????????# #??? | | ?????????####????# #?????? ???????# #??? | | ????????## ####?## ##?????? !??????# #??? | | ????###?# ##?## ##???????# ??????# #??? | | ???##""## ##?# #????????# # ?????# #??? | | ???#"*! # ### #????????# ## ????# #### | | ???#"[[!= ## ########?# #?####### | | ???#"!^* #?? #?# | | ???#"!=!#X #### #### #?? #?# #### | | ???##"??# ##??# #??????? ??????## # | | ????????### ##??## ##?????? #???????# ## | | ??????????########### ##????? ????????# #? | | ?????????????????# a@ #????? ????????# ##? | | ?????????????????# a #????? ????????####?? | | ????????????????## #????????????????????? | | ????????????????# % #????????????????????? | | ????????????????#a ##????????????????????? | | ???????????????# a# #?????????????????????? | | ???????????????##%# ## #?????????????????????? | | ????????????????# ###??##?????????????????????? | | ???????????????? #???????????????????????????? | | ????????????????###???????????????????????????? | | ??????????????????????????????????????????????? | | ??????????????????????????????????????????????? | | ??????????????????????????????????????????????? | | ??????????????????????????????????????????????? | | ??????????????????????????????????????????????? | | ??????????????????????????????????????????????? | | ??????????????????????????????????????????????? | | ??????????????????????????????????????????????? | | ??????????????????????????????????????????????? | | ??????????????????????????????????????????????? | | ??????????????????????????????????????????????? | | ??????????????????????????????????????????????? | | ??????????????????????????????????????????????? | | ??????????????????????????????????????????????? | | ??????????????????????????????????????????????? | +----------------------------------------------------+ Best States ------------- Heat Dissipation 25 Energy Generation 10 Energy Capacity 250 Matter Stores 300 Matter Capacity 300 Sight Range 16 Terrain Scan Density 10 Evasion (%) 40 Recoil Reduction 2 Item Schematics ----------------- None Robot Schematics ------------------ None Fabricated ------------ Nothing Alien Tech Used ----------------- None Achievements -------------- None Challenges ------------ None Game ------ Seed SystemAssemblyAirjet Manual? 0 Play Time 00:30:13 Cumulative 47.0 hours Start 2023.10.25 @ 23:21:29 End 2023.10.26 @ 21:16:59 Sessions 2 Manual Loads 0 Difficulty Rogue Special Mode None Game No. 30 Rogue 30 Adventurer 0 Explorer 0 Win Type - Total 1 Types 1/0/0/0/0/0/0/0/0 Lore% 32 Gallery% 39 Achievement% 33 Wizard Run 0 Options --------- ASCII 1 Keyboard 0 Movement Mouse Keybinds 0 Fullscreen 1 Font 24/Smallcaps Map View 76x50 Tactical HUD 1 Map Filters NONE Filters NONE Steam 1 RUN: 4497c5b4-2750-4157-b7d1-f28435fc6928